fUSD/lending_fUSD_20260510
["ID","MTS","AMOUNT","RATE_DAILY","PERIOD"]
[421974072,1778395704000,-134.87844382,0.0001152,2]
[421974073,1778395726000,-174.61919141,0.00011388,2]
[421974074,1778395755000,5530.0,0.00012,3]
[421974075,1778395772000,-500.0,0.00011388,2]
[421974076,1778395772000,171.0,0.00012,3]
[421974079,1778395787000,5530.0,0.00012,3]
[421974080,1778395803000,-175.54,0.00010865,2]
[421974136,1778395956000,-961.93151573,0.00010851,2]
[421974153,1778395957000,-172.80167956,0.0004171,120]
[421974151,1778395957000,-345.13615696,0.0004171,120]
[421974138,1778395957000,-170.60701573,0.0004171,120]
[421974140,1778395957000,-961.69,0.0004171,120]
[421974141,1778395957000,-194.45548697,0.0004171,120]
[421974139,1778395957000,-186.14262431,0.0004171,120]
[421974142,1778395957000,-185.16867985,0.0004171,120]
[421974145,1778395957000,-285.95834309,0.0004171,120]
[421974137,1778395957000,-159.34,0.0004171,120]
[421974144,1778395957000,-275.15202909,0.0004171,120]
[421974146,1778395957000,-199.06219137,0.0004171,120]
[421974149,1778395957000,-158.56111379,0.0004171,120]
[421974148,1778395957000,-333.9368592,0.0004171,120]
[421974147,1778395957000,-170.6609484,0.0004171,120]
[421974150,1778395957000,-179.33136289,0.0004171,120]
[421974152,1778395957000,-180.29723076,0.0004171,120]
[421974143,1778395957000,-196.94104175,0.0004171,120]
[421974167,1778395958000,-290.36775462,0.0004171,120]
[421974166,1778395958000,-500.0,0.0004171,120]
[421974165,1778395958000,-500.0,0.0004171,120]
[421974163,1778395958000,-500.0,0.0004171,120]
[421974164,1778395958000,-171.20021001,0.0004171,120]
[421974162,1778395958000,-473.93741022,0.0004171,120]
[421974157,1778395958000,-244.23133031,0.0004171,120]
[421974161,1778395958000,-157.93213712,0.0004171,120]
[421974159,1778395958000,-178.9299029,0.0004171,120]
[421974156,1778395958000,-257.22278877,0.0004171,120]
[421974154,1778395958000,-205.2173511,0.0004171,120]
[421974168,1778395958000,-500.0,0.0004171,120]
[421974160,1778395958000,-500.0,0.0004171,120]
[421974169,1778395958000,-500.0,0.0004171,120]
[421974155,1778395958000,-605.70998004,0.0004171,120]
[421974172,1778395958000,-350.9076025,0.0004171,120]
[421974170,1778395958000,-500.0,0.0004171,120]
[421974184,1778395958000,-500.0,0.0004171,120]
[421974182,1778395958000,-500.0,0.0004171,120]
[421974183,1778395958000,-500.0,0.0004171,120]
[421974181,1778395958000,-500.0,0.0004171,120]
[421974180,1778395958000,-500.0,0.0004171,120]
[421974179,1778395958000,-500.0,0.0004171,120]
[421974158,1778395958000,-500.0,0.0004171,120]
[421974178,1778395958000,-500.0,0.0004171,120]
[421974171,1778395958000,-500.0,0.0004171,120]
[421974173,1778395958000,-525.87918734,0.0004171,120]
[421974174,1778395958000,-150.66674686,0.0004171,120]
[421974177,1778395958000,-500.0,0.0004171,120]
[421974176,1778395958000,-500.0,0.0004171,120]
[421974175,1778395958000,-234.94934474,0.0004171,120]
[421974185,1778395959000,-500.0,0.0004171,120]
[421974198,1778395959000,-176.60361358,0.0004171,120]
[421974199,1778395959000,-500.0,0.0004171,120]
[421974197,1778395959000,-500.0,0.0004171,120]
[421974195,1778395959000,-215.58131489,0.0004171,120]
[421974196,1778395959000,-317.33173226,0.0004171,120]
[421974194,1778395959000,-167.43390689,0.0004171,120]
[421974193,1778395959000,-166.35442317,0.0004171,120]
[421974200,1778395959000,-529.695527,0.0004171,120]
[421974192,1778395959000,-223.93582745,0.0004171,120]
[421974189,1778395959000,-363.80210412,0.0004171,120]
[421974188,1778395959000,-163.98479821,0.0004171,120]
[421974186,1778395959000,-500.0,0.0004171,120]
[421974187,1778395959000,-500.0,0.0004171,120]
[421974190,1778395959000,-438.26367002,0.0004171,120]
[421974191,1778395959000,-382.93972426,0.0004171,120]
[421974202,1778395959000,-202.85295264,0.0004171,120]
[421974203,1778395959000,-500.0,0.0004171,120]
[421974219,1778395959000,-313.14288384,0.0004171,120]
[421974218,1778395959000,-222.96700531,0.0004171,120]
[421974217,1778395959000,-214.55954621,0.0004171,120]
[421974201,1778395959000,-195.24931214,0.0004171,120]
[421974216,1778395959000,-442.4192,0.0004171,120]
[421974214,1778395959000,-150.4935,0.0004171,120]
[421974213,1778395959000,-500.0,0.0004171,120]
[421974215,1778395959000,-202.5326875,0.0004171,120]
[421974211,1778395959000,-500.0,0.0004171,120]
[421974212,1778395959000,-500.0,0.0004171,120]
[421974206,1778395959000,-500.0,0.0004171,120]
[421974205,1778395959000,-409.8804519,0.0004171,120]
[421974204,1778395959000,-500.0,0.0004171,120]
[421974209,1778395959000,-500.0,0.0004171,120]
[421974208,1778395959000,-500.0,0.0004171,120]
[421974210,1778395959000,-336.39690629,0.0004171,120]
[421974207,1778395959000,-500.0,0.0004171,120]
[421974232,1778395960000,-1950.28,0.0004171,60]
[421974234,1778395960000,-1950.28,0.0004171,60]
[421974236,1778395960000,-1950.28,0.0004171,60]
[421974235,1778395960000,-1950.28,0.0004171,60]
[421974233,1778395960000,-1950.28,0.0004171,60]
[421974230,1778395960000,-1950.28,0.0004171,60]
[421974231,1778395960000,-154.49853244,0.0004171,120]
[421974237,1778395960000,-1950.28,0.0004171,60]
[421974239,1778395960000,-1950.28,0.0004171,60]
[421974228,1778395960000,-154.00050073,0.0004171,120]
[421974227,1778395960000,-1950.28,0.0004171,60]
[421974225,1778395960000,-1950.28,0.0004171,60]
[421974226,1778395960000,-1950.28,0.0004171,60]
[421974224,1778395960000,-165.70651498,0.0004171,120]
[421974223,1778395960000,-181.73649023,0.0004171,120]
[421974222,1778395960000,-154.46478965,0.0004171,120]
[421974221,1778395960000,-266.17147532,0.0004171,120]
[421974220,1778395960000,-611.19630498,0.0004171,120]
[421974229,1778395960000,-1950.28,0.0004171,60]
[421974238,1778395960000,-1950.28,0.0004171,60]
[421974251,1778395960000,-172.5453351,0.0004171,120]
[421974241,1778395960000,-1950.28,0.0004171,60]
[421974240,1778395960000,-1950.28,0.0004171,60]
[421974259,1778395960000,-254.33100927,0.0004171,120]
[421974260,1778395960000,-500.0,0.0004171,120]
[421974258,1778395960000,-202.47329444,0.0004171,120]
[421974256,1778395960000,-100000.0,0.0004171,30]
[421974257,1778395960000,-283.36811493,0.0004171,120]
[421974255,1778395960000,-1950.3147643,0.0004171,60]
[421974254,1778395960000,-299.04008145,0.0004171,120]
[421974253,1778395960000,-355.7538675,0.0004171,120]
[421974261,1778395960000,-500.0,0.0004171,120]
[421974250,1778395960000,-1950.28,0.0004171,60]
[421974249,1778395960000,-1950.28,0.0004171,60]
[421974247,1778395960000,-222.24613095,0.0004171,120]
[421974248,1778395960000,-1950.28,0.0004171,60]
[421974246,1778395960000,-1950.28,0.0004171,60]
[421974245,1778395960000,-500.0,0.0004171,120]
[421974244,1778395960000,-1950.28,0.0004171,60]
[421974243,1778395960000,-1950.28,0.0004171,60]
[421974242,1778395960000,-1950.28,0.0004171,60]
[421974252,1778395960000,-1950.28,0.0004171,60]
[421974273,1778395961000,-197.33286047,0.0004171,120]
[421974274,1778395961000,-150.9332388,0.0004171,120]
[421974279,1778395961000,-500.0,0.0004171,120]
[421974275,1778395961000,-192.2628683,0.0004171,120]
[421974277,1778395961000,-244.4,0.0004171,30]
[421974272,1778395961000,-307.80550555,0.0004171,120]
[421974276,1778395961000,-366.4,0.0004171,120]
[421974271,1778395961000,-210.5399305,0.0004171,120]
[421974266,1778395961000,-165.99013205,0.0004171,120]
[421974269,1778395961000,-198.61817795,0.0004171,120]
[421974267,1778395961000,-151.83294411,0.0004171,120]
[421974268,1778395961000,-176.90433764,0.0004171,120]
[421974264,1778395961000,-168.25006649,0.0004171,120]
[421974263,1778395961000,-265.18539636,0.0004171,120]
[421974265,1778395961000,-225.80844096,0.0004171,120]
[421974262,1778395961000,-593.9472,0.0004171,120]
[421974278,1778395961000,-339.26230592,0.0004171,120]
[421974270,1778395961000,-500.0,0.0004171,120]
[421974281,1778395961000,-500.0,0.0004171,120]
[421974283,1778395961000,-500.0,0.0004171,120]
[421974297,1778395961000,-500.0,0.0004171,120]
[421974301,1778395961000,-500.0,0.0004171,120]
[421974280,1778395961000,-500.0,0.0004171,120]
[421974300,1778395961000,-500.0,0.0004171,120]
[421974299,1778395961000,-500.0,0.0004171,120]
[421974298,1778395961000,-500.0,0.0004171,120]
[421974296,1778395961000,-165.43920994,0.0004171,120]
[421974295,1778395961000,-500.0,0.0004171,120]
[421974294,1778395961000,-500.0,0.0004171,120]
[421974293,1778395961000,-500.0,0.0004171,120]
[421974292,1778395961000,-500.0,0.0004171,120]
[421974290,1778395961000,-500.0,0.0004171,120]
[421974289,1778395961000,-500.0,0.0004171,120]
[421974288,1778395961000,-500.0,0.0004171,120]
[421974287,1778395961000,-500.0,0.0004171,120]
[421974286,1778395961000,-218.83467426,0.0004171,120]
[421974284,1778395961000,-500.0,0.0004171,120]
[421974285,1778395961000,-500.0,0.0004171,120]
[421974282,1778395961000,-500.0,0.0004171,120]
[421974291,1778395961000,-500.0,0.0004171,120]
[421974315,1778395962000,-299.98736577,0.0004171,120]
[421974314,1778395962000,-299.98736577,0.0004171,120]
[421974316,1778395962000,-173.11824535,0.0004171,120]
[421974321,1778395962000,-299.98736577,0.0004171,120]
[421974318,1778395962000,-299.98736577,0.0004171,120]
[421974319,1778395962000,-299.98736577,0.0004171,120]
[421974313,1778395962000,-616.66542449,0.0004171,120]
[421974317,1778395962000,-299.98736577,0.0004171,120]
[421974312,1778395962000,-500.0,0.0004171,120]
[421974302,1778395962000,-500.0,0.0004171,120]
[421974310,1778395962000,-338.38407779,0.0004171,120]
[421974309,1778395962000,-500.0,0.0004171,120]
[421974308,1778395962000,-500.0,0.0004171,120]
[421974307,1778395962000,-202.46,0.0004171,120]
[421974306,1778395962000,-222.5381,0.0004171,120]
[421974305,1778395962000,-500.0,0.0004171,120]
[421974304,1778395962000,-209.22375874,0.0004171,120]
[421974311,1778395962000,-500.0,0.0004171,120]
[421974320,1778395962000,-299.98736577,0.0004171,120]
[421974303,1778395962000,-598.84180793,0.0004171,120]
[421974324,1778395962000,-500.0,0.0004171,120]
[421974322,1778395962000,-299.98736577,0.0004171,120]
[421974340,1778395962000,-500.0,0.0004171,120]
[421974341,1778395962000,-500.0,0.0004171,120]
[421974339,1778395962000,-500.0,0.0004171,120]
[421974337,1778395962000,-500.0,0.0004171,120]
[421974338,1778395962000,-601.69964626,0.0004171,120]
[421974335,1778395962000,-226.2832642,0.0004171,120]
[421974332,1778395962000,-309.63213272,0.0004171,120]
[421974334,1778395962000,-160.47982776,0.0004171,120]
[421974336,1778395962000,-500.0,0.0004171,120]
[421974331,1778395962000,-500.0,0.0004171,120]
[421974330,1778395962000,-221.78911068,0.0004171,120]
[421974329,1778395962000,-164.57984247,0.0004171,120]
[421974327,1778395962000,-500.0,0.0004171,120]
[421974328,1778395962000,-514.72837145,0.0004171,120]
[421974326,1778395962000,-153.70734605,0.0004171,120]
[421974325,1778395962000,-500.0,0.0004171,120]
[421974333,1778395962000,-172.47082684,0.0004171,120]
[421974323,1778395962000,-500.0,0.0004171,120]
[421974354,1778395963000,-204.60077867,0.0004171,120]
[421974355,1778395963000,-181.52064791,0.0004171,120]
[421974356,1778395963000,-160.3720533,0.0004171,120]
[421974359,1778395963000,-173.9254235,0.0004171,120]
[421974358,1778395963000,-452.50734201,0.0004171,120]
[421974352,1778395963000,-158.99077474,0.0004171,120]
[421974357,1778395963000,-500.0,0.0004171,120]
[421974353,1778395963000,-155.7709178,0.0004171,120]
[421974342,1778395963000,-500.0,0.0004171,120]
[421974349,1778395963000,-500.0,0.0004171,120]
[421974350,1778395963000,-500.0,0.0004171,120]
[421974348,1778395963000,-500.0,0.0004171,120]
[421974347,1778395963000,-203.16609794,0.0004171,120]
[421974345,1778395963000,-304.26498734,0.0004171,120]
[421974346,1778395963000,-1345.32,0.0004171,120]
[421974344,1778395963000,-500.0,0.0004171,120]
[421974361,1778395963000,-412.83940428,0.0004171,120]
[421974351,1778395963000,-318.44296683,0.0004171,120]
[421974360,1778395963000,-150.16031217,0.0004171,120]
[421974343,1778395963000,-169.16247768,0.0004171,120]
[421974363,1778395963000,-225.66163089,0.0004171,120]
[421974381,1778395963000,-4186.21,0.0004171,120]
[421974379,1778395963000,-4186.21,0.0004171,120]
[421974378,1778395963000,-498.87232747,0.0004171,120]
[421974376,1778395963000,-500.0,0.0004171,120]
[421974377,1778395963000,-4186.21,0.0004171,120]
[421974375,1778395963000,-4186.21,0.0004171,120]
[421974374,1778395963000,-500.0,0.0004171,120]
[421974372,1778395963000,-183.45550308,0.0004171,120]
[421974380,1778395963000,-4186.21,0.0004171,120]
[421974371,1778395963000,-500.0,0.0004171,120]
[421974373,1778395963000,-4186.21,0.0004171,120]
[421974364,1778395963000,-252.17855331,0.0004171,120]
[421974366,1778395963000,-4186.21,0.0004171,120]
[421974365,1778395963000,-4186.21,0.0004171,120]
[421974362,1778395963000,-359.86223131,0.0004171,120]
[421974369,1778395963000,-4186.21,0.0004171,120]
[421974368,1778395963000,-4186.21,0.0004171,120]
[421974370,1778395963000,-4186.21,0.0004171,120]
[421974367,1778395963000,-4186.21,0.0004171,120]
[421974397,1778395964000,-228.878847,0.0004171,120]
[421974398,1778395964000,-191.02471108,0.0004171,120]
[421974396,1778395964000,-4186.27650427,0.0004171,120]
[421974395,1778395964000,-4186.21,0.0004171,120]
[421974393,1778395964000,-4186.21,0.0004171,120]
[421974394,1778395964000,-4186.21,0.0004171,120]
[421974392,1778395964000,-4186.21,0.0004171,120]
[421974391,1778395964000,-4186.21,0.0004171,120]
[421974390,1778395964000,-192.34431587,0.0004171,120]
[421974388,1778395964000,-4186.21,0.0004171,120]
[421974386,1778395964000,-4186.21,0.0004171,120]
[421974387,1778395964000,-4186.21,0.0004171,120]
[421974383,1778395964000,-272.29506548,0.0004171,120]
[421974384,1778395964000,-4186.21,0.0004171,120]
[421974382,1778395964000,-4186.21,0.0004171,120]
[421974399,1778395964000,-203.71119441,0.0004171,120]
[421974389,1778395964000,-180.73409891,0.0004171,120]
[421974385,1778395964000,-4186.21,0.0004171,120]
[421974400,1778395964000,-217.40396658,0.0004171,120]
[421974403,1778395964000,-500.0,0.0004171,120]
[421974401,1778395964000,-165.25207309,0.0004171,120]
[421974418,1778395964000,-500.0,0.0004171,120]
[421974417,1778395964000,-500.0,0.0004171,120]
[421974414,1778395964000,-641.57247543,0.0004171,120]
[421974416,1778395964000,-500.0,0.0004171,120]
[421974413,1778395964000,-500.0,0.0004171,120]
[421974412,1778395964000,-500.0,0.0004171,120]
[421974410,1778395964000,-500.0,0.0004171,120]
[421974415,1778395964000,-500.0,0.0004171,120]
[421974409,1778395964000,-500.0,0.0004171,120]
[421974408,1778395964000,-500.0,0.0004171,120]
[421974406,1778395964000,-500.0,0.0004171,120]
[421974407,1778395964000,-500.0,0.0004171,120]
[421974405,1778395964000,-500.0,0.0004171,120]
[421974404,1778395964000,-500.0,0.0004171,120]
[421974402,1778395964000,-500.0,0.0004171,120]
[421974411,1778395964000,-500.0,0.0004171,120]
[421974430,1778395965000,-523.68,0.0004171,120]
[421974436,1778395965000,-523.68,0.0004171,120]
[421974435,1778395965000,-523.68,0.0004171,120]
[421974433,1778395965000,-523.68,0.0004171,120]
[421974434,1778395965000,-166.0649015,0.0004171,120]
[421974432,1778395965000,-523.68,0.0004171,120]
[421974431,1778395965000,-523.68,0.0004171,120]
[421974429,1778395965000,-523.68,0.0004171,120]
[421974420,1778395965000,-268.89424317,0.0004171,120]
[421974426,1778395965000,-523.68,0.0004171,120]
[421974427,1778395965000,-523.68,0.0004171,120]
[421974425,1778395965000,-523.68,0.0004171,120]
[421974424,1778395965000,-443.45355741,0.0004171,120]
[421974423,1778395965000,-408.05670276,0.0004171,120]
[421974422,1778395965000,-156.25478204,0.0004171,120]
[421974421,1778395965000,-6899.97185477,0.0004171,60]
[421974419,1778395965000,-420.51573334,0.0004171,120]
[421974428,1778395965000,-523.68,0.0004171,120]
[421974437,1778395965000,-523.68,0.0004171,120]
[421974439,1778395965000,-523.68,0.0004171,120]
[421974440,1778395965000,-523.68,0.0004171,120]
[421974457,1778395965000,-500.0,0.0004171,120]
[421974456,1778395965000,-500.0,0.0004171,120]
[421974455,1778395965000,-159.19758102,0.0004171,120]
[421974453,1778395965000,-251.59210793,0.0004171,120]
[421974454,1778395965000,-171.71231198,0.0004171,120]
[421974452,1778395965000,-523.85923498,0.0004171,120]
[421974451,1778395965000,-523.68,0.0004171,120]
[421974449,1778395965000,-523.68,0.0004171,120]
[421974438,1778395965000,-523.68,0.0004171,120]
[421974448,1778395965000,-208.79165503,0.0004171,120]
[421974446,1778395965000,-523.68,0.0004171,120]
[421974447,1778395965000,-523.68,0.0004171,120]
[421974445,1778395965000,-523.68,0.0004171,120]
[421974444,1778395965000,-523.68,0.0004171,120]
[421974443,1778395965000,-468.4159681,0.0004171,120]
[421974441,1778395965000,-470.68936504,0.0004171,120]
[421974442,1778395965000,-523.68,0.0004171,120]
[421974450,1778395965000,-523.68,0.0004171,120]
[421974469,1778395966000,-500.0,0.0004171,120]
[421974468,1778395966000,-197.09479194,0.0004171,120]
[421974473,1778395966000,-187.7424564,0.0004171,120]
[421974471,1778395966000,-100000.0,0.0004171,30]
[421974472,1778395966000,-500.0,0.0004171,120]
[421974467,1778395966000,-287.84934643,0.0004171,120]
[421974470,1778395966000,-500.0,0.0004171,120]
[421974466,1778395966000,-210.85823872,0.0004171,120]
[421974463,1778395966000,-217.5601057,0.0004171,120]
[421974464,1778395966000,-159.06366364,0.0004171,120]
[421974462,1778395966000,-100000.0,0.0004171,30]
[421974461,1778395966000,-244.07776017,0.0004171,120]
[421974460,1778395966000,-500.0,0.0004171,120]
[421974459,1778395966000,-403.97648455,0.0004171,120]
[421974458,1778395966000,-159.56817055,0.0004171,120]
[421974474,1778395966000,-438.10821972,0.0004171,120]
[421974465,1778395966000,-213.00338054,0.0004171,120]
[421974475,1778395966000,-169.41940567,0.0004171,30]
[421974477,1778395966000,-166.7996633,0.0004171,120]
[421974496,1778395966000,-253.05924742,0.0004171,120]
[421974476,1778395966000,-197.27746935,0.0004171,120]
[421974495,1778395966000,-2283.45119147,0.0004171,120]
[421974494,1778395966000,-2675.68,0.0004171,120]
[421974493,1778395966000,-2283.45119147,0.0004171,120]
[421974492,1778395966000,-2283.45119147,0.0004171,120]
[421974491,1778395966000,-2675.68,0.0004171,120]
[421974488,1778395966000,-2675.68,0.0004171,120]
[421974490,1778395966000,-2283.45119147,0.0004171,120]
[421974487,1778395966000,-2675.68,0.0004171,120]
[421974489,1778395966000,-2283.45119147,0.0004171,120]
[421974484,1778395966000,-2675.68,0.0004171,120]
[421974486,1778395966000,-2283.45119148,0.0004171,120]
[421974479,1778395966000,-361.0,0.0004171,120]
[421974480,1778395966000,-174.73137766,0.0004171,120]
[421974482,1778395966000,-152.78176801,0.0004171,120]
[421974478,1778395966000,-164.56602269,0.0004171,120]
[421974483,1778395966000,-2675.68,0.0004171,120]
[421974485,1778395966000,-2675.68,0.0004171,120]
[421974481,1778395966000,-156.22045755,0.0004171,30]
[421974509,1778395967000,-2283.45119147,0.0004171,120]
[421974511,1778395967000,-2283.45119147,0.0004171,120]
[421974513,1778395967000,-2675.68,0.0004171,120]
[421974512,1778395967000,-2675.68,0.0004171,120]
[421974510,1778395967000,-2675.68,0.0004171,120]
[421974507,1778395967000,-2283.45119147,0.0004171,120]
[421974508,1778395967000,-2675.68,0.0004171,120]
[421974506,1778395967000,-2283.45119147,0.0004171,120]
[421974514,1778395967000,-2675.68,0.0004171,120]
[421974503,1778395967000,-2675.68,0.0004171,120]
[421974504,1778395967000,-2283.45119147,0.0004171,120]
[421974502,1778395967000,-2283.45119147,0.0004171,120]
[421974499,1778395967000,-2675.68,0.0004171,120]
[421974500,1778395967000,-2283.45119147,0.0004171,120]
[421974501,1778395967000,-2675.68,0.0004171,120]
[421974498,1778395967000,-2283.45119147,0.0004171,120]
[421974497,1778395967000,-2675.68,0.0004171,120]
[421974505,1778395967000,-2675.68,0.0004171,120]
[421974516,1778395967000,-2675.68,0.0004171,120]
[421974534,1778395967000,-462.06088352,0.0004171,120]
[421974517,1778395967000,-2675.68,0.0004171,120]
[421974515,1778395967000,-2675.68,0.0004171,120]
[421974535,1778395967000,-500.0,0.0004171,120]
[421974533,1778395967000,-500.0,0.0004171,120]
[421974532,1778395967000,-500.0,0.0004171,120]
[421974531,1778395967000,-500.0,0.0004171,120]
[421974529,1778395967000,-216.66836206,0.0004171,120]
[421974527,1778395967000,-218.64962517,0.0004171,120]
[421974528,1778395967000,-172.21028398,0.0004171,120]
[421974530,1778395967000,-166.75676511,0.0004171,120]
[421974525,1778395967000,-297.31109036,0.0004171,120]
[421974518,1778395967000,-2675.68,0.0004171,120]
[421974526,1778395967000,-175.67613194,0.0004171,120]
[421974519,1778395967000,-2675.68,0.0004171,120]
[421974521,1778395967000,-2675.89230078,0.0004171,120]
[421974520,1778395967000,-2675.68,0.0004171,120]
[421974523,1778395967000,-213.41169844,0.0004171,120]
[421974524,1778395967000,-157.82376179,0.0004171,120]
[421974522,1778395967000,-164.63411523,0.0004171,120]
[421974546,1778395968000,-288.98127286,0.0004171,120]
[421974552,1778395968000,-1123.67359714,0.0004171,30]
[421974553,1778395968000,-209.44914614,0.0004171,120]
[421974551,1778395968000,-150.15692021,0.0004171,120]
[421974549,1778395968000,-1119.0,0.0004171,30]
[421974550,1778395968000,-614.81189084,0.0004171,120]
[421974548,1778395968000,-580.4616423,0.0004171,120]
[421974547,1778395968000,-197.47504999,0.0004171,120]
[421974545,1778395968000,-500.0,0.0004171,120]
[421974536,1778395968000,-500.0,0.0004171,120]
[421974544,1778395968000,-500.0,0.0004171,120]
[421974542,1778395968000,-500.0,0.0004171,120]
[421974539,1778395968000,-157.33541527,0.0004171,120]
[421974541,1778395968000,-622.13388242,0.0004171,120]
[421974540,1778395968000,-166.10461055,0.0004171,120]
[421974538,1778395968000,-500.0,0.0004171,120]
[421974537,1778395968000,-500.0,0.0004171,120]
[421974554,1778395968000,-170.91221571,0.0004171,120]
[421974543,1778395968000,-175.60546142,0.0004171,120]
[421974555,1778395968000,-186.48413401,0.0004171,120]
[421974576,1778395968000,-217.27784982,0.0004171,120]
[421974556,1778395968000,-241.51682366,0.0004171,120]
[421974572,1778395968000,-190.96757995,0.0004171,120]
[421974573,1778395968000,-5005.92932545,0.0004171,120]
[421974574,1778395968000,-158.39061614,0.0004171,120]
[421974571,1778395968000,-155.71506243,0.0004171,120]
[421974568,1778395968000,-224.13058498,0.0004171,120]
[421974569,1778395968000,-198.55963242,0.0004171,120]
[421974570,1778395968000,-208.05570607,0.0004171,120]
[421974567,1778395968000,-168.74685244,0.0004171,120]
[421974575,1778395968000,-500.0,0.0004171,120]
[421974565,1778395968000,-214.09462804,0.0004171,120]
[421974566,1778395968000,-163.2025923,0.0004171,120]
[421974557,1778395968000,-155.52049387,0.0004171,120]
[421974559,1778395968000,-162.28434904,0.0004171,120]
[421974561,1778395968000,-155.11182267,0.0004171,120]
[421974558,1778395968000,-207.09636344,0.0004171,120]
[421974562,1778395968000,-157.15045164,0.0004171,120]
[421974563,1778395968000,-173.12412457,0.0004171,120]
[421974564,1778395968000,-150.61332878,0.0004171,120]
[421974560,1778395968000,-160.4412961,0.0004171,120]
[421974590,1778395969000,-156.73197831,0.0004171,120]
[421974591,1778395969000,-178.04201247,0.0004171,120]
[421974592,1778395969000,-167.30085585,0.0004171,120]
[421974593,1778395969000,-204.03643911,0.0004171,120]
[421974589,1778395969000,-500.0,0.0004171,120]
[421974586,1778395969000,-169.08417211,0.0004171,120]
[421974587,1778395969000,-153.61872935,0.0004171,120]
[421974585,1778395969000,-183.08695992,0.0004171,120]
[421974584,1778395969000,-209.39151208,0.0004171,120]
[421974583,1778395969000,-157.90120021,0.0004171,120]
[421974582,1778395969000,-183.90169483,0.0004171,120]
[421974580,1778395969000,-500.0,0.0004171,120]
[421974577,1778395969000,-535.57401368,0.0004171,120]
[421974578,1778395969000,-161.73445189,0.0004171,120]
[421974579,1778395969000,-195.57948959,0.0004171,120]
[421974594,1778395969000,-198.70079373,0.0004171,120]
[421974588,1778395969000,-500.0,0.0004171,120]
[421974581,1778395969000,-442.34046333,0.0004171,120]
[421974597,1778395969000,-174.37154733,0.0004171,120]
[421974596,1778395969000,-166.58973756,0.0004171,120]
[421974595,1778395969000,-155.38338173,0.0004171,120]
[421974614,1778395969000,-795.97,0.0004171,120]
[421974613,1778395969000,-795.97,0.0004171,120]
[421974611,1778395969000,-795.97,0.0004171,120]
[421974612,1778395969000,-795.97,0.0004171,120]
[421974608,1778395969000,-186.75414218,0.0004171,120]
[421974609,1778395969000,-193.51900222,0.0004171,120]
[421974607,1778395969000,-550.23710669,0.0004171,120]
[421974610,1778395969000,-795.97,0.0004171,120]
[421974603,1778395969000,-500.0,0.0004171,120]
[421974606,1778395969000,-598.35715628,0.0004171,120]
[421974600,1778395969000,-162.47386783,0.0004171,120]
[421974601,1778395969000,-12634.13205723,0.0004171,30]
[421974599,1778395969000,-597.93528183,0.0004171,120]
[421974598,1778395969000,-174.83132228,0.0004171,120]
[421974604,1778395969000,-500.0,0.0004171,120]
[421974605,1778395969000,-500.0,0.0004171,120]
[421974602,1778395969000,-167.13606771,0.0004171,120]
[421974623,1778395970000,-795.97,0.0004171,120]
[421974630,1778395970000,-795.97,0.0004171,120]
[421974632,1778395970000,-795.97,0.0004171,120]
[421974629,1778395970000,-795.97,0.0004171,120]
[421974627,1778395970000,-795.97,0.0004171,120]
[421974628,1778395970000,-795.97,0.0004171,120]
[421974626,1778395970000,-795.97,0.0004171,120]
[421974625,1778395970000,-795.97,0.0004171,120]
[421974631,1778395970000,-795.97,0.0004171,120]
[421974622,1778395970000,-795.97,0.0004171,120]
[421974619,1778395970000,-795.97,0.0004171,120]
[421974620,1778395970000,-795.97,0.0004171,120]
[421974618,1778395970000,-795.97,0.0004171,120]
[421974616,1778395970000,-795.97,0.0004171,120]